{"text_format":"1","workbook":"xlsx","n_sheets":3,"sheets":["Tabulky dívky","pavouk","Pořadí"],"not_rendered":{"charts":0,"images":1,"macros":1,"external_links":0,"defined_names":4,"comments":0,"pivot_tables":0},"unopened":[],"bounds":{"document_bytes":16777216,"sheet_cells":100000,"rows_first":2000,"rows_last":500,"rows_between":2000,"halvings":0,"cell_chars":16384,"cell_head_chars":4096},"cells_cut":0,"cells_raw":0,"read":"whole","date_system":"1900"}

{"sheet":"Tabulky dívky","index":0,"n_rows":65,"n_cols":11,"rows_kept":65,"cut":false,"hidden":false,"merged":[]}
[]
["Skupina A - kurt ",null,"Slobodová Markéta","Dvořaková Barbora","Čápová Victoria","Mrkvičková Josefína","Pořadí","Počet vítězství"]
["A1","Slobodová Markéta",null,"4-1","4-0","4-0","1.","3"]
["A2","Dvořaková Barbora","1-4",null,"4-0","2-4","3.","1"]
["A3","Čápová Victoria","0-4","0-4",null,"1-4","4.","0"]
["A4","Mrkvičková Josefína","0-4","4-2","4-1",null,"2.","2"]
[]
["Skupina B -  kurt ",null,"Svoboda Iva","Pešková Erika","Koulová Stella","Sedláčková Karla","Pořadí","Počet vítězství"]
["B1","Svoboda Iva",null,"4-0","4-0","4-1","1.","3"]
["B2","Pešková Erika","0-4",null,"4-3","4-1","2.","2"]
["B3","Koulová Stella","0-4","3-4",null,"4-0","3.","1"]
["B4","Sedláčková Karla","1-4","1-4","0-4",null,"4.","0"]
[]
["Skupina C - kurt ",null,"Holejšovská Julie","Chlustinová Viktorie","Veverová Žofie","Šturmová Lilien","Pořadí","Počet vítězství"]
["C1","Holejšovská Julie",null,"0-4","4-1","0-4","3.","1"]
["C2","Chlustinová Viktorie","4-0",null,"4-0","0-4","2.","2"]
["C3","Veverová Žofie","1-4","0-4",null,"0-4","4.","0"]
["C4","Šturmová Lilien","4-0","4-0","4-0",null,"1.","3"]
[]
["Skupina D - kurt ",null,"Nováková Lucie","Marková Vanessa","Burešová Ella","Oralová Catarina","Pořadí","Počet vítězství"]
["D1","Nováková Lucie",null,"4-0","0-4","4-1","2.","2"]
["D2","Marková Vanessa","0-4",null,"0-4","4-3","3.","1"]
["D3","Burešová Ella","4-0","4-0",null,"4-0","1.","3"]
["D4","Oralová Catarina","1-4","3-4","0-4",null,"4.","0"]
[]
["Skupina E - kurt",null,"Jurčíková Veronika","Šlosrová Elena","Kovařík Emily","Mottlová Klaudie","Pořadí","Počet vítězství"]
["E1","Jurčíková Veronika",null,"4-0","4-0","4-2","1.","3"]
["E2","Šlosrová Elena","0-4",null,"4-1","4-2","2.","2"]
["E3","Kovařík Emily","0-4","1-4",null,"1-4","4.","0"]
["E4","Mottlová Klaudie","2-4","2-4","4-1",null,"3.","1"]
[]
["Skupina F - kurt",null,"Hybnerová Kristýna","Kahounová Sofie","Šalatová Viktorie","Kozáková Charlota","Filjo Victoria","Pořadí","Počet vítězství"]
["F1","Hybnerová Kristýna",null,"4-0","4-0","4-1","1-4","1.","3"]
["F2","Kahounová Sofie","0-4",null,"4-0","4-1","4-1","2.","3"]
["F3","Šalatová Viktorie","0-4","0-4",null,"3-4","1-4","5.","0"]
["F4","Kozáková Charlota","1-4","1-4","4-3",null,"4-2","3.","2"]
["F5","Filjo Victoria","4-1","1-4","4-1","2-4",null,"4.",2]
[]
["Skupina G - kurt ",null,0,0,0,0,0,"Pořadí"]
["G1",0,null,0,0,0,0]
["G2",0,null,null,0,0,0]
["G3",0,null,null,null,0,0]
["G4",0,null,null,null,null,0,null,null,0]
["G5",0,null,null,null,null,null,null,null,0]
[]
["Skupina H - kurt ",null,0,0,0,0,0,"Pořadí",null,null,"skóre"]
["H1",0,null,0,0,0,0,null,null,0]
["H2",0,null,null,0,0,0,null,null,0]
["H3",0,null,null,null,0,0,null,null,0]
["H4",0,null,null,null,null,0,null,null,0]
["H5",0,null,null,null,null,null,null,null,0]
[]
["Skupina I - kurt ",null,0,0,0,0,0,"Pořadí",null,null,"skóre"]
["I1",0,null,0,0,0,0,null,null,0]
["I2",0,null,null,0,0,0,null,null,0]
["I3",0,null,null,null,0,0,null,null,0]
["I4",0,null,null,null,null,0,null,null,0]
["I5",0,null,null,null,null,null,null,null,0]
[]
["Skupina J - kurt ",null,0,0,0,0,0,"Pořadí",null,null,"skóre"]
["J1",0,null,0,0,0,0,null,null,0]
["J2",0,null,null,0,0,0,null,null,0]
["J3",0,null,null,null,0,0,null,null,0]
["J4",0,null,null,null,null,0,null,null,0]
["J5",0,null,null,null,null,null,null,null,0]

{"sheet":"pavouk","index":1,"n_rows":32,"n_cols":4,"rows_kept":32,"cut":false,"hidden":false,"merged":[]}
["FINÁLOVÝ PAVOUK"]
[]
[]
[null,"Slobodová Markéta"]
[]
[null,null,"Slobodová Markéta"]
["Šlosrová Elena",null,"4-0"]
[null,"Pešková Erika"]
["Pešková Erika"]
[null,null,null,"Burešová Ella"]
["Hybnerová Kristýna",null,null,"4-1"]
[null,"Hybnerová Kristýna"]
["Chlustinová Viktorie"]
[null,null,"Burešová Ella"]
[null,null,"4-1"]
[null,"Burešová Ella"]
[]
[null,null,null,"Burešová Ella"]
[null,null,null,"4-1"]
[null,"Šturmová Lilien"]
[]
[null,null,"Šturmová Lilien"]
["Kahounová Sofie",null,"4-0"]
[null,"Jurčíková Veronika"]
["Jurčíková Veronika","4-2"]
[null,null,null,"Šturmová Lilien"]
["Mrkvičková Josefína",null,null,"4-1"]
[null,"Nováková Lucie"]
["Nováková Lucie","4-2"]
[null,null,"Svoboda Iva"]
[null,null,"4-3"]
[null,"Svoboda Iva"]

{"sheet":"Pořadí","index":2,"n_rows":59,"n_cols":7,"rows_kept":59,"cut":false,"hidden":false,"merged":[]}
["POŘADÍ - SPARTA HEAD BABYTENIS TOUR Léto  2023 - Dívky"]
[]
[]
[]
[]
[]
[]
[]
[]
[]
[]
[]
[]
[]
[]
[]
[]
[]
[]
[]
[]
[]
[]
["Pořadí","Příjmení","1. turnaj","2. turnaj","3. turnaj","Masters","Celkem"]
["1.","Slobodová Markéta",300,200,null,null,{"$f":"SUM(C25:F25)","v":500}]
["2.","Svoboda Iva",250,200,null,null,450]
["3.","Burešová Ella",0,300,null,null,300]
["4.","Šturmová Lilien",0,250,null,null,250]
["5.- 7.","Brňovjáková Kateřina",200,0,null,null,200]
[null,"Davis Eva",200,0,null,null,200]
[null,"Nováková Lucie",100,100,null,null,200]
["8.-9.","Jurčíková Veronika",50,100,null,null,150]
[null,"Hybnerová Kristýna",50,100,null,null,150]
["10.","Holejšovská Julie",100,20,null,null,120]
["11.-13.","Jurková Valerie",100,0,null,null,100]
[null,"Koudelová Sabina",100,0,null,null,100]
[null,"Pešková Erika",0,100,null,null,{"$f":"SUM(C37:E37)","v":100}]
["14.","Kahounová Sofie",20,50,null,null,{"$f":"SUM(C38:F38)","v":70}]
["15.-19.","Kodrová Lucie",50,0,null,null,{"$f":"SUM(C39:F39)","v":50}]
[null,"Hájková Karolína",50,0,null,null,{"$f":"SUM(C40:F40)","v":50}]
[null,"Mrkvičková Josefína",0,50,null,null,{"$f":"SUM(C41:E41)","v":50}]
[null,"Chlustinová Viktorie",0,50,null,null,{"$f":"SUM(C42:E42)","v":50}]
[null,"Šlosrová Elena",0,50,null,null,{"$f":"SUM(C43:E43)","v":50}]
["20.-28.","Černíková Terezie",20,0,null,null,{"$f":"SUM(C44:F44)","v":20}]
[null,"Vrbatová Lilian",20,0,null,null,{"$f":"SUM(C45:F45)","v":20}]
[null,"Martini Milana",20,0,null,null,{"$f":"SUM(C46:F46)","v":20}]
[null,"Kovařík Emily",10,10,null,null,{"$f":"SUM(C47:F47)","v":20}]
[null,"Dvořáková Barbora",0,20,null,null,{"$f":"SUM(C48:E48)","v":20}]
[null,"Koulová Stella",0,20,null,null,{"$f":"SUM(C49:E49)","v":20}]
[null,"Marková Vanessa",0,20,null,null,{"$f":"SUM(C50:E50)","v":20}]
[null,"Mottlová Klaudie",0,20,null,null,{"$f":"SUM(C51:E51)","v":20}]
[null,"Kozáková Charlota",0,20,null,null,{"$f":"SUM(C52:E52)","v":20}]
["29.-34.","Hanzalová Natálie",10,0,null,null,{"$f":"SUM(C53:F53)","v":10}]
[null,"Čápová Viktorie",0,10,null,null,{"$f":"SUM(C54:E54)","v":10}]
[null,"Sedláčková Klára",0,10,null,null,10]
[null,"Veverová Žofie",0,10,null,null,10]
[null,"Oralová Catarina",0,10,null,null,10]
[null,"Filjo Victoria",0,10,null,null,10]
["35.","Šalatová Viktorie",0,5,null,null,5]